bitfinex-derivatives/quotes_BTCF0:USTF0_20250922
["timestamp","ask_amount","ask_price","bid_price","bid_amount"]
[1758582146452,0.015,112750.0,112740.0,1.90156487]
[1758582146649,0.0154,112750.0,112740.0,1.90156487]
[1758582147249,0.015,112750.0,112740.0,1.90156487]
[1758582147444,0.0154,112750.0,112740.0,1.90156487]
[1758582149758,0.015,112750.0,112740.0,1.90156487]
[1758582150055,0.0154,112750.0,112740.0,1.90156487]
[1758582150361,0.0154,112750.0,112740.0,2.15156487]
[1758582150953,0.0154,112750.0,112740.0,1.0404221]
[1758582151158,0.0154,112750.0,112740.0,2.15140487]
[1758582151357,0.0154,112750.0,112740.0,1.34640487]
[1758582151548,0.0154,112750.0,112740.0,2.15136487]
[1758582158154,0.0114,112750.0,112740.0,2.15136487]
[1758582158355,0.0118,112750.0,112740.0,2.15136487]
[1758582158760,0.0114,112750.0,112740.0,2.15136487]
[1758582158961,0.0118,112750.0,112740.0,2.15136487]
[1758582159159,0.0118,112750.0,112740.0,1.34640487]
[1758582159361,0.0118,112750.0,112740.0,1.90124487]
[1758582159663,0.0044,112750.0,112740.0,1.89824487]
[1758582159864,0.0084,112750.0,112740.0,1.91024487]
[1758582160664,0.0084,112750.0,112740.0,2.06278564]
[1758582160862,0.0054,112750.0,112740.0,2.06378564]
[1758582162259,0.0054,112750.0,112740.0,1.25894564]
[1758582162459,0.0054,112750.0,112740.0,2.06354564]
[1758582163364,0.0054,112750.0,112740.0,1.25894564]
[1758582163570,0.0054,112750.0,112740.0,0.8004221]
[1758582163571,0.23466177,112750.0,112740.0,0.8004221]
[1758582163865,0.0054,112750.0,112740.0,1.83420387]
[1758582164060,0.23466177,112750.0,112740.0,1.83420387]
[1758582165061,0.23466177,112750.0,112740.0,1.02968387]
[1758582165260,0.23466177,112750.0,112740.0,1.83420387]
[1758582166965,0.0054,112750.0,112740.0,1.83420387]
[1758582168058,0.23466177,112750.0,112740.0,1.83420387]
[1758582168257,0.23466177,112750.0,112740.0,1.83432387]
[1758582170265,0.23466177,112750.0,112740.0,1.6050621]
[1758582170466,0.23466177,112750.0,112740.0,1.83432387]
[1758582170869,0.23466177,112750.0,112740.0,1.6050621]
[1758582171066,0.23466177,112750.0,112740.0,1.83432387]
[1758582171673,0.23466177,112750.0,112740.0,1.02968387]
[1758582171962,0.25742177,112750.0,112740.0,0.8004221]
[1758582172161,0.50742177,112750.0,112740.0,1.6048221]
[1758582172362,0.63419047,112750.0,112740.0,1.3048221]
[1758582174966,0.54557806,112750.0,112740.0,1.3048221]
[1758582177871,0.53179806,112750.0,112740.0,1.3048221]
[1758582180769,0.30253629,112750.0,112740.0,1.3048221]
[1758582180976,0.53179806,112750.0,112740.0,1.53408387]
[1758582181178,0.50742177,112750.0,112740.0,1.53408387]
[1758582181474,0.48466177,112750.0,112740.0,1.53408387]
[1758582182278,0.0054,112750.0,112740.0,2.04334564]
[1758582182776,0.23426177,112750.0,112740.0,1.81408387]
[1758582182977,0.23466177,112750.0,112740.0,1.81408387]
[1758582183476,0.23466177,112750.0,112740.0,1.53408387]
[1758582185764,0.0054,112750.0,112740.0,2.04334564]
[1758582185970,0.23466177,112750.0,112740.0,1.81408387]
[1758582186169,0.23426177,112750.0,112740.0,1.81408387]
[1758582186468,0.23466177,112750.0,112740.0,1.81408387]
[1758582193981,0.23466177,112750.0,112740.0,3.31408387]
[1758582196278,0.0054,112750.0,112740.0,3.31408387]
[1758582196578,0.23466177,112750.0,112740.0,3.31408387]
[1758582196781,0.0054,112750.0,112740.0,3.54334564]
[1758582197284,0.005,112750.0,112740.0,3.79334564]
[1758582197482,0.0054,112750.0,112740.0,3.79334564]
[1758582197687,0.005,112750.0,112740.0,3.79334564]
[1758582197983,0.0054,112750.0,112740.0,3.79334564]
[1758582201887,0.0054,112750.0,112740.0,2.98894564]
[1758582202186,0.0054,112750.0,112740.0,3.79334564]
[1758582206386,0.0054,112750.0,112740.0,3.54334564]
[1758582206583,0.0054,112750.0,112740.0,3.79334564]
[1758582206788,0.005,112750.0,112740.0,3.79334564]
[1758582206996,0.005,112750.0,112740.0,2.98894564]
[1758582207297,0.0054,112750.0,112740.0,3.79334564]
[1758582208596,0.0054,112750.0,112740.0,2.98894564]
[1758582208790,0.0054,112750.0,112740.0,3.79330564]
[1758582209290,0.0054,112750.0,112740.0,2.98894564]
[1758582209597,0.0054,112750.0,112740.0,3.79330564]
[1758582214700,0.0054,112750.0,112740.0,2.98894564]
[1758582215195,0.0054,112750.0,112740.0,3.79330564]
[1758582215699,0.0054,112750.0,112740.0,2.98894564]
[1758582215897,0.0054,112750.0,112740.0,3.3347821]
[1758582216098,0.0054,112750.0,112740.0,3.79330564]
[1758582218300,0.0054,112750.0,112740.0,3.79326564]
[1758582219297,0.0054,112750.0,112740.0,3.54326564]
[1758582220598,0.0008,112770.0,112760.0,0.1248564]
[1758582220797,0.0008,112770.0,112760.0,2.26645587]
[1758582221298,0.02229,112780.0,112770.0,0.1248485]
[1758582221498,0.04668844,112780.0,112770.0,0.7656485]
[1758582221897,0.04668844,112780.0,112770.0,1.2899685]
[1758582223306,0.12815388,112780.0,112770.0,1.2909685]
[1758582223507,0.04968844,112780.0,112770.0,1.2909685]
[1758582224098,0.05268844,112780.0,112770.0,1.2959285]
[1758582224302,0.05268844,112780.0,112770.0,0.4916485]
[1758582224506,0.35836791,112780.0,112770.0,1.2959285]
[1758582225504,0.05268844,112780.0,112770.0,1.2959285]
[1758582225804,0.35836791,112780.0,112770.0,0.4916485]
[1758582226006,0.35836791,112780.0,112770.0,1.2959285]
[1758582226709,0.35836791,112780.0,112770.0,0.4916485]
[1758582226908,0.35836791,112780.0,112770.0,1.2958885]
[1758582227106,0.33396947,112780.0,112770.0,1.2958885]
[1758582228110,0.34288227,112780.0,112770.0,1.2958885]
[1758582228308,0.41426319,112780.0,112770.0,1.2958885]
[1758582231714,0.10858372,112780.0,112770.0,1.2958885]
[1758582231910,0.41426319,112780.0,112770.0,1.2958885]
[1758582232602,0.43868382,112780.0,112770.0,1.2958485]
[1758582233118,0.52727452,112780.0,112770.0,1.2958485]
[1758582233508,0.52727452,112780.0,112770.0,0.4916485]
[1758582233707,0.52727452,112780.0,112770.0,1.2958485]
[1758582235518,0.52727452,112780.0,112770.0,0.4916485]
[1758582235726,0.52727452,112780.0,112770.0,1.2958485]
[1758582237021,0.43868382,112780.0,112770.0,1.2958485]
[1758582238122,0.52727452,112780.0,112770.0,1.2958485]
[1758582240221,0.54033452,112780.0,112770.0,0.04225]
[1758582240419,0.79033452,112780.0,112770.0,0.006]
[1758582240725,0.79033452,112780.0,112770.0,0.02748]
[1758582241818,0.79033452,112780.0,112770.0,0.1160785]
[1758582242222,0.22159505,112780.0,112770.0,0.1289785]
[1758582242422,0.52727452,112780.0,112770.0,0.4897785]
[1758582242923,0.43868382,112780.0,112770.0,0.4897785]
[1758582243825,0.43908382,112780.0,112770.0,0.4897785]
[1758582244230,0.52767452,112780.0,112770.0,0.4897785]
[1758582246727,0.13340435,112780.0,112770.0,0.4897785]
[1758582248233,0.12409155,112780.0,112770.0,0.4897785]
[1758582248828,0.12449155,112780.0,112770.0,0.4897785]
[1758582249025,0.12409155,112780.0,112770.0,0.4897785]
[1758582249227,0.12449155,112780.0,112770.0,0.4897785]
[1758582250228,0.13322782,112780.0,112770.0,0.4897785]
[1758582250726,0.52749799,112780.0,112770.0,0.40118]
[1758582251030,0.52749799,112780.0,112770.0,1.2939785]
[1758582251229,0.54055799,112780.0,112770.0,1.2939785]
[1758582251631,0.54055799,112780.0,112770.0,0.4897785]
[1758582252130,0.54055799,112780.0,112770.0,0.4768785]
[1758582256036,0.51613736,112780.0,112770.0,0.4768785]
[1758582256251,0.5406057,112780.0,112770.0,0.4768785]
[1758582256539,0.5406057,112780.0,112770.0,0.1160785]
[1758582256740,0.5406057,112780.0,112770.0,0.4768785]
[1758582267648,0.23492623,112780.0,112770.0,0.4900585]
[1758582267849,0.5406057,112780.0,112770.0,0.4900585]
[1758582270152,0.13327553,112780.0,112770.0,0.4900585]
[1758582270354,0.438955,112780.0,112770.0,0.4900585]
[1758582271355,0.13327553,112780.0,112770.0,0.4900585]
[1758582271655,0.22146633,112780.0,112770.0,0.4900585]
[1758582271858,0.22186633,112780.0,112770.0,0.4900585]
[1758582272754,0.5275458,112780.0,112770.0,0.4900585]
[1758582273657,0.5275458,112780.0,112770.0,1.2941785]
[1758582274958,0.5275458,112780.0,112770.0,0.4900585]
[1758582275259,0.5275458,112780.0,112770.0,1.2941785]
[1758582276657,0.5275458,112780.0,112770.0,0.4900585]
[1758582276858,0.5275458,112780.0,112770.0,1.2941785]
[1758582280259,0.22186633,112780.0,112770.0,1.2941785]
[1758582280458,0.5275458,112780.0,112770.0,1.2941785]
[1758582282561,0.68040345,112780.0,112770.0,1.2941785]
[1758582285564,0.69396345,112780.0,112770.0,1.2941785]
[1758582287664,0.68042895,112780.0,112770.0,1.2941785]
[1758582289170,0.22189183,112780.0,112770.0,1.2941785]
[1758582289375,0.68042895,112780.0,112770.0,1.2941785]
[1758582296178,0.68042895,112780.0,112770.0,1.2941385]
[1758582298863,0.68042895,112780.0,112770.0,0.4900585]
[1758582299079,0.69350895,112780.0,112770.0,0.83156]
[1758582300174,0.69350895,112780.0,112770.0,0.9201586]
[1758582301766,0.69350895,112780.0,112770.0,0.02748]
[1758582301972,0.69350895,112780.0,112770.0,0.1160786]
[1758582302271,0.69350895,112780.0,112770.0,0.02748]
[1758582302681,1.53357751,112780.0,112770.0,0.006]
[1758582302885,1.53357751,112780.0,112770.0,0.00104]
[1758582303072,1.56545713,112780.0,112770.0,0.00104]
[1758582303382,0.14372966,112770.0,112760.0,0.0001]
[1758582303680,0.1227065,112760.0,112750.0,0.02138]
[1758582303875,1.77061746,112760.0,112750.0,0.02128]
[1758582305481,0.60573746,112760.0,112750.0,0.02128]
[1758582305685,1.40981746,112760.0,112750.0,0.02128]
[1758582306884,1.41281746,112760.0,112750.0,0.02828]
[1758582307777,1.41381746,112760.0,112750.0,0.02928]
[1758582308584,1.41385746,112760.0,112750.0,0.02928]
[1758582309185,0.60973746,112760.0,112750.0,0.02928]
[1758582309484,1.41385746,112760.0,112750.0,0.02928]
[1758582309785,0.60973746,112760.0,112750.0,0.02928]
[1758582309977,1.41385746,112760.0,112750.0,0.02928]
[1758582313282,1.41385746,112760.0,112750.0,0.008]
[1758582315480,1.77465746,112760.0,112750.0,0.008]
[1758582315681,2.25392602,112760.0,112750.0,0.008]
[1758582316974,1.44980602,112760.0,112750.0,0.008]
[1758582317186,2.25396602,112760.0,112750.0,0.008]
[1758582317579,1.44980602,112760.0,112750.0,0.008]
[1758582317981,2.25408602,112760.0,112750.0,0.008]
[1758582318176,1.77493746,112760.0,112750.0,0.0311]
[1758582318483,0.97053746,112760.0,112750.0,0.0311]
[1758582318673,1.77537746,112760.0,112750.0,0.0311]
[1758582318872,1.77537746,112760.0,112750.0,0.008]
[1758582324190,1.77529746,112760.0,112750.0,0.008]
[1758582325291,0.97093746,112760.0,112750.0,0.008]
[1758582325488,1.77521746,112760.0,112750.0,0.008]
[1758582325892,0.97093746,112760.0,112750.0,0.008]
[1758582326091,1.77517746,112760.0,112750.0,0.008]
[1758582327195,0.97093746,112760.0,112750.0,0.008]
[1758582327680,1.77517746,112760.0,112750.0,0.008]
[1758582328684,1.41437746,112760.0,112750.0,0.008]
[1758582328886,1.41437746,112760.0,112750.0,0.1197343]
[1758582329192,0.61013746,112760.0,112750.0,0.1197343]
[1758582329387,1.41437746,112760.0,112750.0,0.1197343]
[1758582329887,0.61013746,112760.0,112750.0,0.1197343]
[1758582330196,1.41437746,112760.0,112750.0,0.1197343]
[1758582330692,0.61013746,112760.0,112750.0,0.1197343]
[1758582330886,1.41437746,112760.0,112750.0,0.1197343]
[1758582331688,0.61013746,112760.0,112750.0,0.1197343]
[1758582331896,1.41437746,112760.0,112750.0,0.1197343]
[1758582334996,0.61013746,112760.0,112750.0,0.1197343]
[1758582335500,1.41437746,112760.0,112750.0,0.1197343]
[1758582336501,0.61013746,112760.0,112750.0,0.1197343]
[1758582336794,1.41437746,112760.0,112750.0,0.1197343]
[1758582342599,1.26170703,112760.0,112750.0,0.1197343]
[1758582342897,1.26170703,112760.0,112750.0,0.008]
[1758582343098,1.26170703,112760.0,112750.0,0.0966143]
[1758582343298,1.92837372,112760.0,112750.0,0.0966143]
[1758582345399,1.12413372,112760.0,112750.0,0.1197343]
[1758582345586,1.56757372,112760.0,112750.0,0.1197343]
[1758582345791,0.45746703,112760.0,112750.0,0.1197343]
[1758582345992,1.26170703,112760.0,112750.0,0.1197343]
[1758582346397,0.45746703,112760.0,112750.0,0.1197343]
[1758582346600,1.26170703,112760.0,112750.0,0.1197343]
[1758582347197,0.45746703,112760.0,112750.0,0.1327343]
[1758582347499,1.26170703,112760.0,112750.0,0.4935343]
[1758582347699,1.26130703,112760.0,112750.0,0.4935343]
[1758582347898,1.26170703,112760.0,112750.0,0.4935343]
[1758582361205,0.45746703,112760.0,112750.0,0.4935343]
[1758582361405,0.04987175,112760.0,112750.0,1.39729458]
[1758582361612,0.02845175,112760.0,112750.0,1.06729458]
[1758582361904,0.0044,112760.0,112750.0,2.15149458]
[1758582362108,0.004,112760.0,112750.0,2.15149458]
[1758582362512,0.0044,112760.0,112750.0,2.15149458]
[1758582363109,0.004,112760.0,112750.0,2.15149458]
[1758582363513,0.0044,112760.0,112750.0,2.15149458]
[1758582363825,0.0044,112760.0,112750.0,2.15145458]
[1758582365711,0.0044,112760.0,112750.0,2.16042625]
[1758582366117,0.0044,112760.0,112750.0,2.16038625]
[1758582366311,0.0044,112760.0,112750.0,1.35626625]
[1758582366512,0.0044,112760.0,112750.0,2.16038625]
[1758582368623,0.0044,112760.0,112750.0,1.35626625]
[1758582368818,0.0044,112760.0,112750.0,2.16034625]
[1758582371721,0.0044,112760.0,112750.0,1.85447956]
[1758582372114,0.0044,112760.0,112750.0,2.16034625]
[1758582375524,0.0044,112760.0,112750.0,2.52114625]
[1758582375724,0.00336,112760.0,112750.0,2.52114625]
[1758582375922,0.00336,112760.0,112750.0,1.71706625]
[1758582376233,0.00296,112760.0,112750.0,2.52102625]
[1758582376826,0.00336,112760.0,112750.0,2.52102625]
[1758582377222,0.00336,112760.0,112750.0,4.02102625]
[1758582385729,0.00336,112760.0,112750.0,3.21706625]
[1758582385929,0.00336,112760.0,112750.0,4.02094625]
[1758582386532,0.00336,112760.0,112750.0,3.20809458]
[1758582386725,0.00336,112760.0,112750.0,4.01197458]
[1758582389430,0.00336,112760.0,112750.0,3.20809458]
[1758582389928,0.00336,112760.0,112750.0,4.01197458]
[1758582390131,0.00336,112760.0,112750.0,3.20809458]
[1758582390529,0.55922669,112760.0,112750.0,3.45610789]
[1758582390735,0.55922669,112760.0,112750.0,3.27610789]
[1758582391530,0.64783319,112760.0,112750.0,2.37222789]
[1758582391722,0.68576118,112760.0,112750.0,3.17610789]
[1758582391923,0.68576118,112760.0,112750.0,2.72669359]
[1758582392534,0.68576118,112760.0,112750.0,2.81530789]
[1758582396828,0.68576118,112760.0,112750.0,1.99842789]
[1758582397027,0.68576118,112760.0,112750.0,0.02589359]
[1758582397028,1.37427787,112760.0,112750.0,0.02589359]
[1758582397330,0.70761118,112760.0,112750.0,0.04713359]
[1758582399434,0.45761118,112760.0,112750.0,0.04713359]
[1758582403641,0.45761118,112760.0,112750.0,0.13574789]
[1758582404546,0.45761118,112760.0,112750.0,0.73983007]
[1758582404547,0.36749667,112760.0,112750.0,0.73983007]
[1758582404731,0.60996885,112760.0,112750.0,0.42190359]
[1758582405036,0.61036885,112760.0,112750.0,0.42190359]
[1758582405538,0.61036885,112760.0,112750.0,0.51051789]
[1758582405944,0.59680885,112760.0,112750.0,0.51051789]
[1758582406935,0.57244086,112760.0,112750.0,0.51051789]
[1758582407539,0.58600086,112760.0,112750.0,0.51051789]
[1758582407739,0.61017522,112760.0,112750.0,0.51051789]
[1758582412545,0.61017522,112760.0,112750.0,0.02589359]
[1758582412743,0.61017522,112760.0,112750.0,0.13574779]
[1758582421448,0.61017522,112760.0,112750.0,0.51004779]
[1758582421751,0.59661522,112760.0,112750.0,0.51004779]
[1758582428859,0.59669369,112760.0,112750.0,0.51004779]
[1758582432655,0.13806933,112760.0,112750.0,0.51004779]
[1758582432855,0.04946283,112760.0,112750.0,0.73935997]
[1758582433161,0.27837501,112760.0,112750.0,1.54391997]
[1758582433356,0.27877501,112760.0,112750.0,1.54391997]
[1758582437961,0.27877501,112760.0,112750.0,0.73935997]
[1758582438163,0.27877501,112760.0,112750.0,1.54375997]
[1758582439262,0.27877501,112760.0,112750.0,0.73935997]
[1758582439566,0.27877501,112760.0,112750.0,1.54367997]
[1758582440062,0.27877501,112760.0,112750.0,0.73935997]
[1758582440258,0.27877501,112760.0,112750.0,1.54367997]
[1758582440460,0.27877501,112760.0,112750.0,0.73935997]
[1758582440757,0.27877501,112760.0,112750.0,1.54363997]
[1758582441163,0.02761283,112760.0,112750.0,1.54363997]
[1758582441460,0.00336,112760.0,112750.0,1.54363997]
[1758582441660,0.00296,112760.0,112750.0,1.54363997]
[1758582441859,0.00336,112760.0,112750.0,1.54363997]
[1758582446058,0.00336,112760.0,112750.0,1.31428779]
[1758582446254,0.00336,112760.0,112750.0,1.54359997]
[1758582447968,0.00336,112760.0,112750.0,1.54351997]
[1758582449765,0.00336,112760.0,112750.0,0.51004779]
[1758582449967,0.00336,112760.0,112750.0,1.54343997]
[1758582454766,0.00336,112760.0,112750.0,2.25275215]
[1758582455170,0.00296,112760.0,112750.0,2.25275215]
[1758582455368,0.00336,112760.0,112750.0,2.25275215]
[1758582456665,0.00296,112760.0,112750.0,2.25275215]
[1758582456865,0.00336,112760.0,112750.0,2.25275215]
[1758582457966,0.00336,112760.0,112750.0,0.98935997]
[1758582458273,0.00336,112760.0,112750.0,2.08339997]
[1758582458463,0.00336,112760.0,112750.0,1.79339997]
[1758582459164,0.00336,112760.0,112750.0,0.76004779]
[1758582459365,0.00336,112760.0,112750.0,1.54335997]
[1758582463482,0.00336,112760.0,112750.0,1.69335997]
[1758582463782,0.00336,112760.0,112750.0,2.08267215]
[1758582464682,0.00336,112760.0,112750.0,1.92971642]
[1758582470880,0.00336,112760.0,112750.0,1.12571642]
[1758582471081,0.00336,112760.0,112750.0,1.92967642]
[1758582480993,0.00336,112760.0,112750.0,1.12571642]
[1758582481183,0.00336,112760.0,112750.0,1.92963642]
[1758582482782,0.00336,112760.0,112750.0,1.91174283]
[1758582482984,0.00336,112760.0,112750.0,1.6060742]
[1758582483177,0.00336,112760.0,112750.0,1.91174283]
[1758582483793,0.00336,112760.0,112750.0,0.92782283]
[1758582484184,0.00336,112760.0,112750.0,1.73170283]
[1758582484992,0.00336,112760.0,112750.0,0.92782283]
[1758582485490,0.02564,112760.0,112750.0,1.73170283]
[1758582485882,0.02564,112760.0,112750.0,1.60170283]
[1758582486080,0.02564,112760.0,112750.0,0.79782283]
[1758582486291,0.02564,112760.0,112750.0,1.60170283]
[1758582486789,0.02564,112760.0,112750.0,3.10170283]
[1758582488885,0.00336,112760.0,112750.0,3.10170283]
[1758582505602,0.00336,112760.0,112750.0,2.29782283]
[1758582505903,0.00336,112760.0,112750.0,3.10166283]
[1758582508903,0.00336,112760.0,112750.0,3.36166283]
[1758582518416,0.00336,112760.0,112750.0,2.55782283]
[1758582518617,0.00336,112760.0,112750.0,3.36162283]
[1758582520114,0.00336,112760.0,112750.0,2.55782283]
[1758582520312,0.00336,112760.0,112750.0,3.36162283]
[1758582525018,0.00336,112760.0,112750.0,3.72242283]
[1758582526518,0.00336,112760.0,112750.0,3.8752718]
[1758582536331,0.00336,112760.0,112750.0,3.0714718]
[1758582536528,0.00336,112760.0,112750.0,3.8752318]
[1758582539830,0.00336,112760.0,112750.0,3.0714718]
[1758582540032,0.00336,112760.0,112750.0,3.8752318]
[1758582543034,0.00336,112760.0,112750.0,3.0714718]
[1758582543233,0.00336,112760.0,112750.0,3.8751918]
[1758582545631,0.02073822,112780.0,112770.0,0.1250184]
[1758582545828,0.02305,112780.0,112770.0,1.5187972]
[1758582546028,0.04714345,112780.0,112770.0,1.5187972]
[1758582547234,0.05114345,112780.0,112770.0,1.5217972]
[1758582548034,0.02889345,112780.0,112770.0,1.5217972]
[1758582548233,0.03189345,112780.0,112770.0,1.5227972]
[1758582548828,0.26115225,112780.0,112770.0,1.5227972]
[1758582549130,0.05414345,112780.0,112770.0,1.5227572]
[1758582549432,0.28340225,112780.0,112770.0,1.5227572]
[1758582549629,0.28340225,112780.0,112770.0,0.7190772]
[1758582549833,0.28340225,112780.0,112770.0,1.5227572]
[1758582550836,0.28340225,112780.0,112770.0,0.7190772]
[1758582551037,0.28340225,112780.0,112770.0,1.5227572]
[1758582553440,0.28340225,112780.0,112770.0,0.7190772]
[1758582553641,0.28340225,112780.0,112770.0,1.5227572]
[1758582558148,0.37199265,112780.0,112770.0,1.5227572]
[1758582559738,0.28340225,112780.0,112770.0,1.5227572]
[1758582562048,0.37199275,112780.0,112770.0,1.5227572]
[1758582562652,0.3719879,112780.0,112770.0,1.5227572]
[1758582564255,0.3719879,112780.0,112770.0,1.5227172]
[1758582564455,0.6012467,112780.0,112770.0,1.5227172]
[1758582565258,0.3719879,112780.0,112770.0,1.5227172]
[1758582566768,0.3719879,112780.0,112770.0,0.7190772]
[1758582566960,0.3719879,112780.0,112770.0,1.5226772]
[1758582569168,0.3719879,112780.0,112770.0,0.7190772]
[1758582569469,0.3719879,112780.0,112770.0,1.5226772]
[1758582574774,0.3719879,112780.0,112770.0,1.2934184]
[1758582574974,0.3719879,112780.0,112770.0,1.2933784]
[1758582575273,0.3719879,112780.0,112770.0,1.5226372]
[1758582575769,0.3719879,112780.0,112770.0,0.6304788]
[1758582575970,0.3719879,112780.0,112770.0,0.719077]
[1758582576172,0.3719879,112780.0,112770.0,1.522637]
[1758582576373,0.37199207,112780.0,112770.0,1.522637]
[1758582576773,0.60125087,112780.0,112770.0,1.522637]
[1758582576972,0.60125087,112780.0,112770.0,0.40122]
[1758582577172,0.61464087,112780.0,112770.0,1.20478]
[1758582588588,0.46181375,112780.0,112770.0,1.20478]
[1758582592987,0.46181375,112780.0,112770.0,1.2933781]
[1758582593282,0.44842375,112780.0,112770.0,1.2933781]
[1758582601688,0.14273327,112780.0,112770.0,1.2933781]
[1758582602193,0.44842375,112780.0,112770.0,1.2933781]
[1758582604699,0.44842375,112780.0,112770.0,1.2931781]
[1758582605498,0.44842375,112780.0,112770.0,0.4898181]
[1758582605691,0.44842375,112780.0,112770.0,1.2931781]
[1758582617002,0.44842375,112780.0,112770.0,1.2931381]
[1758582620410,0.14273327,112780.0,112770.0,1.2931381]
[1758582620602,0.44842375,112780.0,112770.0,1.2931381]
[1758582622714,0.44842375,112780.0,112770.0,0.40122]
[1758582623309,0.44842375,112780.0,112770.0,1.293098]
[1758582624207,0.46176375,112780.0,112770.0,0.04042]
[1758582624506,1.07256375,112780.0,112770.0,0.004]
[1758582625101,1.87584375,112780.0,112770.0,0.004]
[1758582628906,1.07256375,112780.0,112770.0,0.004]
[1758582629114,1.87584375,112780.0,112770.0,0.004]
[1758582631215,1.07256375,112780.0,112770.0,0.004]
[1758582631513,1.87584375,112780.0,112770.0,0.02522]
[1758582631720,1.87584375,112780.0,112770.0,0.004]
[1758582634711,1.07256375,112780.0,112770.0,0.004]
[1758582634914,1.87584375,112780.0,112770.0,0.004]
[1758582635716,1.07256375,112780.0,112770.0,0.004]
[1758582635917,1.87584375,112780.0,112770.0,0.004]
[1758582636513,1.85175098,112780.0,112770.0,0.004]
[1758582636715,1.87583754,112780.0,112770.0,0.004]
[1758582638314,1.07255754,112780.0,112770.0,0.004]
[1758582638521,1.87583754,112780.0,112770.0,0.004]
[1758582638823,1.87583754,112780.0,112770.0,0.02522]
[1758582639016,1.87583754,112780.0,112770.0,0.004]
[1758582639521,1.62583754,112780.0,112770.0,0.004]
[1758582647231,0.82255754,112780.0,112770.0,0.02522]
[1758582647431,1.62579754,112780.0,112770.0,0.02522]
[1758582648334,0.82255754,112780.0,112770.0,0.02522]
[1758582648536,1.62579754,112780.0,112770.0,0.02522]
[1758582650637,2.00808617,112780.0,112770.0,0.004]
[1758582651739,2.00808617,112780.0,112770.0,0.02522]
[1758582653843,1.7787598,112780.0,112770.0,0.02522]
[1758582657639,2.00808617,112780.0,112770.0,0.02522]
[1758582669350,2.00808617,112780.0,112770.0,0.004]
[1758582673858,0.1254179,112770.0,112760.0,0.3587558]
[1758582674045,0.6081572,112770.0,112760.0,0.3587558]
[1758582675258,0.6111572,112770.0,112760.0,0.4523583]
[1758582675453,0.6121572,112770.0,112760.0,0.4533583]
[1758582682866,1.4152372,112770.0,112760.0,0.4533583]
[1758582692069,1.4151572,112770.0,112760.0,0.4533583]
[1758582704378,0.6121572,112770.0,112760.0,0.4533583]
[1758582704870,1.4150772,112770.0,112760.0,0.4533583]
[1758582710680,1.26220278,112770.0,112760.0,0.4533583]
[1758582712585,1.26220278,112770.0,112760.0,0.1156125]
[1758582720182,1.26220278,112770.0,112760.0,0.006]
[1758582720183,1.62300278,112770.0,112760.0,0.006]
[1758582720389,2.1787811,112770.0,112760.0,0.006]
[1758582720582,1.9048824,112770.0,112760.0,0.006]
[1758582721877,1.1019624,112770.0,112760.0,0.006]
[1758582722083,1.07008278,112770.0,112760.0,0.02925]
[1758582722282,1.87288278,112770.0,112760.0,0.02925]
[1758582722584,1.62288278,112770.0,112760.0,0.02925]
[1758582722986,1.62328278,112770.0,112760.0,0.02925]
[1758582729399,1.31750446,112770.0,112760.0,0.02925]
[1758582729597,1.62328278,112770.0,112760.0,0.02925]
[1758582739614,1.62328278,112770.0,112760.0,0.006]
[1758582739809,1.98408278,112770.0,112760.0,0.006]
[1758582740113,2.2898611,112770.0,112760.0,0.006]
[1758582740411,2.5398611,112770.0,112760.0,0.006]
[1758582742610,1.7370611,112770.0,112760.0,0.006]
[1758582742806,2.5398211,112770.0,112760.0,0.006]
[1758582743210,1.43128278,112770.0,112760.0,0.006]
[1758582743511,1.18128278,112770.0,112760.0,0.02745]
[1758582743816,1.98404278,112770.0,112760.0,0.006]
[1758582745311,2.0159224,112770.0,112760.0,0.006]
[1758582747219,2.32170072,112770.0,112760.0,0.006]
[1758582751322,2.0159224,112770.0,112760.0,0.006]
[1758582752518,1.2131624,112770.0,112760.0,0.006]
[1758582753020,2.0159224,112770.0,112760.0,0.006]
[1758582755717,2.32170072,112770.0,112760.0,0.006]
[1758582769833,0.0886057,112760.0,112750.0,0.0001]
[1758582770039,0.1227635,112750.0,112740.0,0.471011]
[1758582770340,1.25530838,112750.0,112740.0,0.470911]
[1758582770636,1.25530838,112750.0,112740.0,0.02149]
[1758582770937,1.68781318,112750.0,112740.0,0.27149]
[1758582771339,1.61610838,112750.0,112740.0,0.27149]
[1758582772141,1.62010838,112750.0,112740.0,0.28349]
[1758582772636,1.77321168,112750.0,112740.0,0.28349]
[1758582773236,1.77421168,112750.0,112740.0,0.28149]
[1758582776738,1.84556912,112750.0,112740.0,0.28149]
[1758582777540,1.04288912,112750.0,112740.0,0.28149]
[1758582777929,1.84556912,112750.0,112740.0,0.28149]
[1758582780446,1.04288912,112750.0,112740.0,0.28149]
[1758582780841,1.04288912,112750.0,112740.0,0.3701113]
[1758582781040,1.84556912,112750.0,112740.0,0.3701113]
[1758582781441,1.04288912,112750.0,112740.0,0.3701113]
[1758582781638,1.84556912,112750.0,112740.0,0.3701113]
[1758582785857,1.3866875,112750.0,112740.0,0.3701113]
[1758582786146,1.84556912,112750.0,112740.0,0.3701113]
[1758582792251,1.04288912,112750.0,112740.0,0.3701113]
[1758582792452,1.84556912,112750.0,112740.0,0.3701113]
[1758582798460,1.04288912,112750.0,112740.0,0.3701113]
[1758582798659,1.84556912,112750.0,112740.0,0.3701113]
[1758582799457,1.04288912,112750.0,112740.0,0.3701113]
[1758582799658,1.84552912,112750.0,112740.0,0.3701113]
[1758582819382,1.84552912,112750.0,112740.0,0.1201113]
[1758582819690,1.04288912,112750.0,112740.0,0.1201113]
[1758582819882,1.84612912,112750.0,112740.0,0.1201113]
[1758582820380,1.04288912,112750.0,112740.0,0.1201113]
[1758582820584,1.84608912,112750.0,112740.0,0.1201113]
[1758582826589,1.04288912,112750.0,112740.0,0.1201113]
[1758582826788,1.84584912,112750.0,112740.0,0.1201113]
[1758582827087,0.121944,112750.0,112740.0,0.36257211]
[1758582827392,0.35178481,112750.0,112740.0,0.72337211]
[1758582828293,0.35178481,112750.0,112740.0,0.4939313]
[1758582832689,0.42817097,112750.0,112740.0,0.4939313]
[1758582833596,0.51678417,112750.0,112740.0,0.4939313]
[1758582837897,0.51678417,112750.0,112740.0,1.2965713]
[1758582838798,0.122344,112750.0,112740.0,1.2965713]
[1758582839893,0.2109583,112750.0,112740.0,0.4939313]
[1758582840092,0.2109583,112750.0,112740.0,1.2966113]
[1758582840294,0.51678527,112750.0,112740.0,1.2966113]
[1758582842401,0.51678527,112750.0,112740.0,0.4939313]
[1758582842603,0.51678527,112750.0,112740.0,1.2965713]
[1758582844199,0.49269871,112750.0,112740.0,1.2965713]